[Event "Titled Tuesday Blitz April 25 Early 2023"]
[White "Steinberg, Nitzan"]
[Black "polandchessplayer"]
[WhiteFideId "2801795"]
[WhiteElo "2486"]
[BlackElo "2601"]
[Result "1/2-1/2"]
[Round "02"]
[TimeControl "180+2"]
[Date "2023.04.25"]
[WhiteClock "0:00:18"]
[BlackClock "0:00:20"]

1. d4 {[%clk 0:03:00]}  Nf6 {[%clk 0:02:59]} 2. Nf3 {[%clk 0:03:01]}  d5 {[%clk 0:02:57]} 3. Bf4 {[%clk 0:03:02]}  c6 {[%clk 0:02:57]} 4. h3 {[%clk 0:03:01]}  g6 {[%clk 0:02:57]} 5. e3 {[%clk 0:03:01]}  Bg7 {[%clk 0:02:57]} 6. c4 {[%clk 0:03:00]}  O-O {[%clk 0:02:57]} 7. Nc3 {[%clk 0:03:01]}  e6 {[%clk 0:02:54]} 8. Be2 {[%clk 0:02:58]}  b6 {[%clk 0:02:54]} 9. O-O {[%clk 0:02:57]}  Bb7 {[%clk 0:02:55]} 10. Rc1 {[%clk 0:02:58]}  Nbd7 {[%clk 0:02:55]} 11. Qc2 {[%clk 0:02:53]}  Rc8 {[%clk 0:02:54]} 12. Rfd1 {[%clk 0:02:54]}  dxc4 {[%clk 0:02:49]} 13. Bxc4 {[%clk 0:02:49]}  b5 {[%clk 0:02:50]} 14. Be2 {[%clk 0:02:45]}  a6 {[%clk 0:02:50]} 15. b4 {[%clk 0:02:33]}  Nd5 {[%clk 0:02:41]} 16. Qb2 {[%clk 0:02:26]}  Nxf4 {[%clk 0:02:39]} 17. exf4 {[%clk 0:02:27]}  Nf6 {[%clk 0:02:34]} 18. g3 {[%clk 0:02:19]}  Qe7 {[%clk 0:02:12]} 19. a3 {[%clk 0:02:19]}  h6 {[%clk 0:02:07]} 20. Ne5 {[%clk 0:02:18]}  Rfd8 {[%clk 0:01:54]} 21. Bf3 {[%clk 0:02:19]}  Qd6 {[%clk 0:01:52]} 22. Ne2 {[%clk 0:02:10]}  Nd5 {[%clk 0:01:37]} 23. h4 {[%clk 0:02:10]}  Qe7 {[%clk 0:01:30]} 24. Kg2 {[%clk 0:01:54]}  h5 {[%clk 0:01:22]} 25. Nd3 {[%clk 0:01:51]}  Nb6 {[%clk 0:01:07]} 26. Nc5 {[%clk 0:01:50]}  Nc4 {[%clk 0:01:07]} 27. Qb3 {[%clk 0:01:49]}  Rd6 {[%clk 0:01:02]} 28. Rd3 {[%clk 0:01:48]}  Rcd8 {[%clk 0:01:01]} 29. Rcd1 {[%clk 0:01:48]}  Qc7 {[%clk 0:00:53]} 30. Qc3 {[%clk 0:01:47]}  Qb6 {[%clk 0:00:52]} 31. Nc1 {[%clk 0:01:47]}  a5 {[%clk 0:00:50]} 32. N1b3 {[%clk 0:01:47]}  a4 {[%clk 0:00:49]} 33. Na5 {[%clk 0:01:43]}  Nxa5 {[%clk 0:00:33]} 34. bxa5 {[%clk 0:01:44]}  Qa7 {[%clk 0:00:33]} 35. Qb4 {[%clk 0:01:22]}  Ba8 {[%clk 0:00:33]} 36. a6 {[%clk 0:01:19]}  Qb6 {[%clk 0:00:33]} 37. Be4 {[%clk 0:01:13]}  Bf8 {[%clk 0:00:32]} 38. Kf3 {[%clk 0:01:10]}  f5 {[%clk 0:00:25]} 39. Kg2 {[%clk 0:01:08]}  fxe4 {[%clk 0:00:26]} 40. Nxe4 {[%clk 0:01:09]}  Rxd4 {[%clk 0:00:25]} 41. Rxd4 {[%clk 0:01:08]}  c5 {[%clk 0:00:19]} 42. Rxd8 {[%clk 0:01:04]}  cxb4 {[%clk 0:00:19]} 43. Rxa8 {[%clk 0:01:04]}  Qc6 {[%clk 0:00:17]} 44. Rdd8 {[%clk 0:00:43]}  Qxe4+ {[%clk 0:00:17]} 45. Kh2 {[%clk 0:00:43]}  Qf3 {[%clk 0:00:18]} 46. Rxf8+ {[%clk 0:00:43]}  Kg7 {[%clk 0:00:18]} 47. Kg1 {[%clk 0:00:41]}  Qd1+ {[%clk 0:00:17]} 48. Kg2 {[%clk 0:00:41]}  Qd5+ {[%clk 0:00:18]} 49. Kh2 {[%clk 0:00:40]}  Qf3 {[%clk 0:00:18]} 50. Rg8+ {[%clk 0:00:39]}  Kh7 {[%clk 0:00:18]} 51. Rh8+ {[%clk 0:00:27]}  Kg7 {[%clk 0:00:19]} 52. Rag8+ {[%clk 0:00:28]}  Kf7 {[%clk 0:00:19]} 53. Rf8+ {[%clk 0:00:27]}  Kg7 {[%clk 0:00:19]} 54. Rhg8+ {[%clk 0:00:27]}  Kh7 {[%clk 0:00:20]} 55. Kg1 {[%clk 0:00:21]}  Qd1+ {[%clk 0:00:20]} 56. Kg2 {[%clk 0:00:22]}  Qd5+ {[%clk 0:00:20]} 57. Kh2 {[%clk 0:00:17]}  Qf3 {[%clk 0:00:20]} 58. Rh8+ {[%clk 0:00:16]}  Kg7 {[%clk 0:00:20]} 59. Rfg8+ {[%clk 0:00:17]}  Kf7 {[%clk 0:00:21]} 60. Rf8+ {[%clk 0:00:18]}  Kg7 {[%clk 0:00:20]} 1/2-1/2


[Site "https://www.chess.com"]

[Event "Titled Tuesday Blitz April 25 Early 2023"]
[White "Gukesh D"]
[Black "Schnaider, Ilan"]
[WhiteFideId "46616543"]
[BlackFideId "169013"]
[WhiteElo "2612"]
[BlackElo "2224"]
[Result "1/2-1/2"]
[Round "02"]
[TimeControl "180+2"]
[Date "2023.04.25"]
[WhiteClock "0:00:12"]
[BlackClock "0:00:06"]

1. d4 {[%clk 0:03:00]}  Nf6 {[%clk 0:02:59]} 2. Nf3 {[%clk 0:03:01]}  g6 {[%clk 0:02:59]} 3. Bf4 {[%clk 0:02:59]}  Bg7 {[%clk 0:02:59]} 4. e3 {[%clk 0:02:59]}  O-O {[%clk 0:02:57]} 5. h3 {[%clk 0:03:00]}  c5 {[%clk 0:02:57]} 6. c3 {[%clk 0:02:59]}  cxd4 {[%clk 0:02:57]} 7. exd4 {[%clk 0:02:53]}  d5 {[%clk 0:02:57]} 8. Bd3 {[%clk 0:02:53]}  Nc6 {[%clk 0:02:54]} 9. O-O {[%clk 0:02:53]}  Re8 {[%clk 0:02:54]} 10. Nbd2 {[%clk 0:02:51]}  Bf5 {[%clk 0:02:48]} 11. Bxf5 {[%clk 0:02:51]}  gxf5 {[%clk 0:02:49]} 12. Ne5 {[%clk 0:02:49]}  e6 {[%clk 0:02:47]} 13. a4 {[%clk 0:02:48]}  Nd7 {[%clk 0:02:40]} 14. Ndf3 {[%clk 0:02:41]}  Ndxe5 {[%clk 0:02:40]} 15. dxe5 {[%clk 0:02:41]}  Qc7 {[%clk 0:02:06]} 16. Re1 {[%clk 0:02:40]}  f6 {[%clk 0:01:58]} 17. exf6 {[%clk 0:02:18]}  Qxf4 {[%clk 0:01:58]} 18. fxg7 {[%clk 0:02:18]}  Kxg7 {[%clk 0:01:59]} 19. g3 {[%clk 0:02:18]}  Qh6 {[%clk 0:01:50]} 20. h4 {[%clk 0:02:09]}  Rad8 {[%clk 0:01:45]} 21. b4 {[%clk 0:02:08]}  Qf6 {[%clk 0:01:36]} 22. b5 {[%clk 0:02:05]}  Na5 {[%clk 0:01:30]} 23. Ne5 {[%clk 0:01:47]}  Nc4 {[%clk 0:01:28]} 24. Qd4 {[%clk 0:01:45]}  Rc8 {[%clk 0:01:04]} 25. Kg2 {[%clk 0:00:57]}  Nxe5 {[%clk 0:00:39]} 26. Rxe5 {[%clk 0:00:58]}  Rc4 {[%clk 0:00:35]} 27. Qe3 {[%clk 0:00:58]}  b6 {[%clk 0:00:15]} 28. Re1 {[%clk 0:00:56]}  Re4 {[%clk 0:00:14]} 29. Rxe4 {[%clk 0:00:53]}  fxe4 {[%clk 0:00:15]} 30. c4 {[%clk 0:00:49]}  Rf8 {[%clk 0:00:13]} 31. cxd5 {[%clk 0:00:43]}  Qf3+ {[%clk 0:00:13]} 32. Qxf3 {[%clk 0:00:43]}  exf3+ {[%clk 0:00:14]} 33. Kf1 {[%clk 0:00:42]}  exd5 {[%clk 0:00:14]} 34. Re5 {[%clk 0:00:33]}  Rc8 {[%clk 0:00:11]} 35. Ke1 {[%clk 0:00:32]}  Rc2 {[%clk 0:00:10]} 36. Re3 {[%clk 0:00:26]}  Ra2 {[%clk 0:00:10]} 37. Rxf3 {[%clk 0:00:26]}  Rxa4 {[%clk 0:00:11]} 38. Rf5 {[%clk 0:00:22]}  Rd4 {[%clk 0:00:08]} 39. h5 {[%clk 0:00:17]}  h6 {[%clk 0:00:08]} 40. Ke2 {[%clk 0:00:17]}  Kg8 {[%clk 0:00:04]} 41. f3 {[%clk 0:00:17]}  Kg7 {[%clk 0:00:04]} 42. g4 {[%clk 0:00:17]}  Kg8 {[%clk 0:00:04]} 43. Ke3 {[%clk 0:00:15]}  Rd1 {[%clk 0:00:04]} 44. Kf4 {[%clk 0:00:13]}  d4 {[%clk 0:00:05]} 45. Rd5 {[%clk 0:00:13]}  Rb1 {[%clk 0:00:03]} 46. Rxd4 {[%clk 0:00:11]}  Rxb5 {[%clk 0:00:03]} 47. Rd8+ {[%clk 0:00:12]}  Kf7 {[%clk 0:00:03]} 48. Rd7+ {[%clk 0:00:12]}  Kf6 {[%clk 0:00:03]} 49. Rxa7 {[%clk 0:00:13]}  Rb4+ {[%clk 0:00:03]} 50. Kg3 {[%clk 0:00:14]}  Rb3 {[%clk 0:00:02]} 51. Rh7 {[%clk 0:00:13]}  Kg5 {[%clk 0:00:03]} 52. Rg7+ {[%clk 0:00:14]}  Kf6 {[%clk 0:00:03]} 53. Rg6+ {[%clk 0:00:15]}  Kf7 {[%clk 0:00:03]} 54. Rxh6 {[%clk 0:00:15]}  b5 {[%clk 0:00:04]} 55. Rb6 {[%clk 0:00:15]}  b4 {[%clk 0:00:04]} 56. g5 {[%clk 0:00:15]}  Rb1 {[%clk 0:00:04]} 57. Kf4 {[%clk 0:00:15]}  Rh1 {[%clk 0:00:04]} 58. Rxb4 {[%clk 0:00:14]}  Rh4+ {[%clk 0:00:05]} 59. Kf5 {[%clk 0:00:13]}  Rxb4 {[%clk 0:00:06]} 60. f4 {[%clk 0:00:13]}  Rb5+ {[%clk 0:00:05]} 61. Kg4 {[%clk 0:00:14]}  Rb4 {[%clk 0:00:06]} 62. Kf5 {[%clk 0:00:13]}  Rb5+ {[%clk 0:00:06]} 63. Kg4 {[%clk 0:00:14]}  Rb4 {[%clk 0:00:06]} 64. Kf5 {[%clk 0:00:12]} 1/2-1/2


[Site "https://www.chess.com"]

[Event "Titled Tuesday Blitz April 25 Early 2023"]
[White "Mitrabha, Guha"]
[Black "Jain Kashish Manoj"]
[WhiteFideId "5057000"]
[BlackFideId "35081098"]
[WhiteElo "2507"]
[BlackElo "2191"]
[Result "1-0"]
[Round "02"]
[TimeControl "180+2"]
[Date "2023.04.25"]
[WhiteClock "0:00:40"]
[BlackClock "0:00:02"]

1. Nf3 {[%clk 0:03:00]}  Nf6 {[%clk 0:02:58]} 2. c4 {[%clk 0:02:57]}  g6 {[%clk 0:02:57]} 3. g3 {[%clk 0:02:57]}  Bg7 {[%clk 0:02:56]} 4. Bg2 {[%clk 0:02:58]}  O-O {[%clk 0:02:57]} 5. O-O {[%clk 0:02:59]}  d6 {[%clk 0:02:55]} 6. Nc3 {[%clk 0:02:59]}  Nc6 {[%clk 0:02:55]} 7. Rb1 {[%clk 0:02:58]}  a5 {[%clk 0:02:50]} 8. d4 {[%clk 0:02:57]}  Bf5 {[%clk 0:02:40]} 9. Ra1 {[%clk 0:02:54]}  Qc8 {[%clk 0:02:15]} 10. d5 {[%clk 0:02:47]}  Nb4 {[%clk 0:02:09]} 11. Nd4 {[%clk 0:02:37]}  Bh3 {[%clk 0:02:06]} 12. b3 {[%clk 0:02:30]}  Bxg2 {[%clk 0:01:37]} 13. Kxg2 {[%clk 0:02:24]}  e5 {[%clk 0:01:38]} 14. Ndb5 {[%clk 0:02:17]}  Na6 {[%clk 0:01:27]} 15. e4 {[%clk 0:02:12]}  Nd7 {[%clk 0:01:13]} 16. Be3 {[%clk 0:02:00]}  f5 {[%clk 0:01:12]} 17. f3 {[%clk 0:02:01]}  Nf6 {[%clk 0:00:58]} 18. Qd3 {[%clk 0:01:46]}  f4 {[%clk 0:00:22]} 19. Bf2 {[%clk 0:01:31]}  g5 {[%clk 0:00:20]} 20. g4 {[%clk 0:01:31]}  h5 {[%clk 0:00:20]} 21. h3 {[%clk 0:01:32]}  hxg4 {[%clk 0:00:18]} 22. hxg4 {[%clk 0:01:31]}  Nxg4 {[%clk 0:00:19]} 23. Rh1 {[%clk 0:01:23]}  Nxf2 {[%clk 0:00:16]} 24. Kxf2 {[%clk 0:01:23]}  Nc5 {[%clk 0:00:17]} 25. Qf1 {[%clk 0:01:23]}  Kf7 {[%clk 0:00:17]} 26. Qg2 {[%clk 0:01:23]}  g4 {[%clk 0:00:08]} 27. Qxg4 {[%clk 0:01:17]}  Qxg4 {[%clk 0:00:07]} 28. fxg4 {[%clk 0:01:18]}  Na6 {[%clk 0:00:08]} 29. Kf3 {[%clk 0:01:14]}  Kg6 {[%clk 0:00:08]} 30. Rh5 {[%clk 0:01:14]}  Rh8 {[%clk 0:00:09]} 31. Rah1 {[%clk 0:01:15]}  Rxh5 {[%clk 0:00:09]} 32. Rxh5 {[%clk 0:01:16]}  Rh8 {[%clk 0:00:07]} 33. Rxh8 {[%clk 0:01:15]}  Bxh8 {[%clk 0:00:08]} 34. a3 {[%clk 0:01:10]}  Bf6 {[%clk 0:00:08]} 35. Na2 {[%clk 0:01:10]}  Bd8 {[%clk 0:00:08]} 36. b4 {[%clk 0:01:10]}  axb4 {[%clk 0:00:06]} 37. axb4 {[%clk 0:01:11]}  Kf6 {[%clk 0:00:07]} 38. Nbc3 {[%clk 0:01:10]}  Ke7 {[%clk 0:00:06]} 39. g5 {[%clk 0:01:08]}  Kf7 {[%clk 0:00:05]} 40. Kg4 {[%clk 0:01:09]}  Kg6 {[%clk 0:00:05]} 41. Ne2 {[%clk 0:00:59]}  Bxg5 {[%clk 0:00:05]} 42. Nec1 {[%clk 0:01:00]}  Bd8 {[%clk 0:00:05]} 43. Nd3 {[%clk 0:01:01]}  Kf6 {[%clk 0:00:05]} 44. Nc3 {[%clk 0:00:59]}  c6 {[%clk 0:00:05]} 45. Kh5 {[%clk 0:00:50]}  Bb6 {[%clk 0:00:05]} 46. Kg4 {[%clk 0:00:47]}  Bd4 {[%clk 0:00:05]} 47. Ne2 {[%clk 0:00:47]}  Be3 {[%clk 0:00:06]} 48. Nc3 {[%clk 0:00:46]}  Bd2 {[%clk 0:00:05]} 49. dxc6 {[%clk 0:00:43]}  bxc6 {[%clk 0:00:06]} 50. b5 {[%clk 0:00:43]}  cxb5 {[%clk 0:00:02]} 51. Nd5+ {[%clk 0:00:44]}  Ke6 {[%clk 0:00:02]} 52. cxb5 {[%clk 0:00:45]}  Nb8 {[%clk 0:00:02]} 53. Nb2 {[%clk 0:00:40]} 1-0


[Site "https://www.chess.com"]

[Event "Titled Tuesday Blitz April 25 Early 2023"]
[White "Demchenko, Anton"]
[Black "Arias, Juan Cruz"]
[WhiteFideId "4160258"]
[BlackFideId "118540"]
[WhiteElo "2545"]
[BlackElo "2243"]
[Result "1-0"]
[Round "02"]
[TimeControl "180+2"]
[Date "2023.04.25"]
[WhiteClock "0:00:14"]
[BlackClock "0:00:20"]

1. e4 {[%clk 0:02:53]}  c6 {[%clk 0:02:59]} 2. d4 {[%clk 0:02:53]}  d5 {[%clk 0:03:00]} 3. e5 {[%clk 0:02:52]}  c5 {[%clk 0:02:59]} 4. Nf3 {[%clk 0:02:50]}  cxd4 {[%clk 0:02:57]} 5. Nxd4 {[%clk 0:02:51]}  Nc6 {[%clk 0:02:57]} 6. Nxc6 {[%clk 0:02:51]}  bxc6 {[%clk 0:02:57]} 7. Bd3 {[%clk 0:02:52]}  a5 {[%clk 0:02:55]} 8. Qe2 {[%clk 0:02:51]}  e6 {[%clk 0:02:53]} 9. Nd2 {[%clk 0:02:51]}  Qb6 {[%clk 0:02:46]} 10. O-O {[%clk 0:02:46]}  Ba6 {[%clk 0:02:45]} 11. c4 {[%clk 0:02:47]}  Ne7 {[%clk 0:02:42]} 12. b3 {[%clk 0:02:45]}  Ng6 {[%clk 0:02:42]} 13. Nf3 {[%clk 0:02:45]}  Bc5 {[%clk 0:02:28]} 14. h4 {[%clk 0:02:26]}  h6 {[%clk 0:02:12]} 15. h5 {[%clk 0:02:17]}  Ne7 {[%clk 0:02:11]} 16. Bf4 {[%clk 0:02:18]}  Rd8 {[%clk 0:01:55]} 17. Rac1 {[%clk 0:02:00]}  Ba3 {[%clk 0:01:54]} 18. Rc2 {[%clk 0:01:52]}  a4 {[%clk 0:01:30]} 19. bxa4 {[%clk 0:01:34]}  Qa5 {[%clk 0:01:28]} 20. Rb1 {[%clk 0:01:22]}  Qxa4 {[%clk 0:01:26]} 21. Bg3 {[%clk 0:01:02]}  O-O {[%clk 0:01:21]} 22. cxd5 {[%clk 0:00:41]}  Bxd3 {[%clk 0:01:17]} 23. Qxd3 {[%clk 0:00:42]}  cxd5 {[%clk 0:00:55]} 24. Rb3 {[%clk 0:00:42]}  Ra8 {[%clk 0:00:49]} 25. Nd4 {[%clk 0:00:43]}  Bb4 {[%clk 0:00:38]} 26. Bh4 {[%clk 0:00:43]}  Rfc8 {[%clk 0:00:22]} 27. g3 {[%clk 0:00:15]}  Rc7 {[%clk 0:00:20]} 28. Rxc7 {[%clk 0:00:14]} 1-0


[Site "https://www.chess.com"]

[Event "Titled Tuesday Blitz April 25 Early 2023"]
[White "Movahed, Sina"]
[Black "Skliarov, Viktor"]
[WhiteFideId "42520835"]
[BlackFideId "14106736"]
[WhiteElo "2225"]
[BlackElo "2317"]
[Result "1-0"]
[Round "02"]
[TimeControl "180+2"]
[Date "2023.04.25"]
[WhiteClock "0:00:14"]
[BlackClock "0:00:08"]

1. Nf3 {[%clk 0:03:00]}  g6 {[%clk 0:02:59]} 2. e4 {[%clk 0:02:59]}  c5 {[%clk 0:02:59]} 3. d4 {[%clk 0:02:56]}  cxd4 {[%clk 0:02:59]} 4. Nxd4 {[%clk 0:02:57]}  Bg7 {[%clk 0:02:59]} 5. c4 {[%clk 0:02:57]}  Nc6 {[%clk 0:02:59]} 6. Be3 {[%clk 0:02:57]}  Nf6 {[%clk 0:03:00]} 7. Nc3 {[%clk 0:02:55]}  Ng4 {[%clk 0:03:00]} 8. Qxg4 {[%clk 0:02:52]}  Nxd4 {[%clk 0:03:01]} 9. Qd1 {[%clk 0:02:52]}  Ne6 {[%clk 0:03:01]} 10. Rc1 {[%clk 0:02:48]}  Qa5 {[%clk 0:03:00]} 11. Qd2 {[%clk 0:02:45]}  d6 {[%clk 0:02:59]} 12. Be2 {[%clk 0:02:44]}  b6 {[%clk 0:02:59]} 13. O-O {[%clk 0:02:43]}  Bb7 {[%clk 0:02:59]} 14. a3 {[%clk 0:02:43]}  O-O {[%clk 0:02:57]} 15. f3 {[%clk 0:02:39]}  f5 {[%clk 0:02:54]} 16. exf5 {[%clk 0:02:27]}  Qxf5 {[%clk 0:02:47]} 17. Nd5 {[%clk 0:02:20]}  Bxd5 {[%clk 0:02:42]} 18. cxd5 {[%clk 0:02:21]}  Nf4 {[%clk 0:02:16]} 19. Bc4 {[%clk 0:02:04]}  Be5 {[%clk 0:02:11]} 20. g3 {[%clk 0:02:00]}  Nh3+ {[%clk 0:02:06]} 21. Kg2 {[%clk 0:01:54]}  Qh5 {[%clk 0:01:47]} 22. Be2 {[%clk 0:01:47]}  Qf5 {[%clk 0:01:18]} 23. Qd3 {[%clk 0:01:02]}  Qd7 {[%clk 0:00:47]} 24. Rc2 {[%clk 0:00:55]}  Rac8 {[%clk 0:00:44]} 25. Rfc1 {[%clk 0:00:52]}  Rxc2 {[%clk 0:00:44]} 26. Rxc2 {[%clk 0:00:53]}  Rc8 {[%clk 0:00:36]} 27. Rxc8+ {[%clk 0:00:48]}  Qxc8 {[%clk 0:00:37]} 28. b4 {[%clk 0:00:43]}  Bf6 {[%clk 0:00:27]} 29. f4 {[%clk 0:00:40]}  g5 {[%clk 0:00:27]} 30. f5 {[%clk 0:00:38]}  g4 {[%clk 0:00:28]} 31. Qe4 {[%clk 0:00:34]}  h5 {[%clk 0:00:24]} 32. Bxg4 {[%clk 0:00:24]}  hxg4 {[%clk 0:00:21]} 33. Qxg4+ {[%clk 0:00:25]}  Kf8 {[%clk 0:00:10]} 34. Bh6+ {[%clk 0:00:13]}  Ke8 {[%clk 0:00:10]} 35. Qg8+ {[%clk 0:00:14]}  Kd7 {[%clk 0:00:11]} 36. Qxc8+ {[%clk 0:00:15]}  Kxc8 {[%clk 0:00:12]} 37. Kxh3 {[%clk 0:00:15]}  b5 {[%clk 0:00:08]} 38. g4 {[%clk 0:00:15]}  Bb2 {[%clk 0:00:08]} 39. Bd2 {[%clk 0:00:14]}  Bxa3 {[%clk 0:00:08]} 40. Bc3 {[%clk 0:00:14]}  Bc1 {[%clk 0:00:08]} 41. Kh4 {[%clk 0:00:13]}  Kd7 {[%clk 0:00:08]} 42. g5 {[%clk 0:00:14]}  Ke8 {[%clk 0:00:09]} 43. g6 {[%clk 0:00:14]}  Kf8 {[%clk 0:00:09]} 44. Kg4 {[%clk 0:00:14]}  Kg8 {[%clk 0:00:08]} 45. h4 {[%clk 0:00:15]}  Be3 {[%clk 0:00:08]} 46. h5 {[%clk 0:00:15]}  Bc1 {[%clk 0:00:08]} 47. f6 {[%clk 0:00:15]}  exf6 {[%clk 0:00:07]} 48. Bxf6 {[%clk 0:00:16]}  Bd2 {[%clk 0:00:08]} 49. Kf5 {[%clk 0:00:14]} 1-0


[Site "https://www.chess.com"]

[Event "Titled Tuesday Blitz April 25 Early 2023"]
[White "Odegov, Artem"]
[Black "Indjic, Aleksandar"]
[WhiteFideId "34183644"]
[BlackFideId "911925"]
[WhiteElo "2300"]
[BlackElo "2614"]
[Result "0-1"]
[Round "02"]
[TimeControl "180+2"]
[Date "2023.04.25"]
[WhiteClock "0:00:04"]
[BlackClock "0:01:13"]

1. d4 {[%clk 0:02:56]}  e6 {[%clk 0:02:59]} 2. c4 {[%clk 0:02:56]}  b6 {[%clk 0:02:56]} 3. Nf3 {[%clk 0:02:55]}  Bb7 {[%clk 0:02:56]} 4. g3 {[%clk 0:02:56]}  f5 {[%clk 0:02:56]} 5. Bg2 {[%clk 0:02:56]}  Bb4+ {[%clk 0:02:56]} 6. Nc3 {[%clk 0:02:55]}  Bxc3+ {[%clk 0:02:55]} 7. bxc3 {[%clk 0:02:56]}  Nf6 {[%clk 0:02:55]} 8. O-O {[%clk 0:02:57]}  O-O {[%clk 0:02:54]} 9. Qd3 {[%clk 0:02:49]}  Qe7 {[%clk 0:02:50]} 10. a4 {[%clk 0:02:48]}  d6 {[%clk 0:02:50]} 11. a5 {[%clk 0:02:48]}  Nbd7 {[%clk 0:02:50]} 12. a6 {[%clk 0:02:47]}  Be4 {[%clk 0:02:49]} 13. Qd2 {[%clk 0:02:44]}  e5 {[%clk 0:02:46]} 14. Ba3 {[%clk 0:02:44]}  c5 {[%clk 0:02:45]} 15. Rfd1 {[%clk 0:02:36]}  Rad8 {[%clk 0:02:44]} 16. e3 {[%clk 0:02:14]}  Bxf3 {[%clk 0:02:37]} 17. Bxf3 {[%clk 0:02:07]}  e4 {[%clk 0:02:37]} 18. Bg2 {[%clk 0:02:07]}  Qe6 {[%clk 0:02:38]} 19. Qe2 {[%clk 0:01:57]}  Rc8 {[%clk 0:02:35]} 20. Rd2 {[%clk 0:01:52]}  cxd4 {[%clk 0:02:32]} 21. cxd4 {[%clk 0:01:48]}  Rfe8 {[%clk 0:02:23]} 22. Bf1 {[%clk 0:01:46]}  h5 {[%clk 0:02:22]} 23. h4 {[%clk 0:01:31]}  Ng4 {[%clk 0:02:16]} 24. Rad1 {[%clk 0:01:29]}  Ndf6 {[%clk 0:02:15]} 25. c5 {[%clk 0:01:19]}  d5 {[%clk 0:02:14]} 26. Rc1 {[%clk 0:01:16]}  g5 {[%clk 0:02:11]} 27. hxg5 {[%clk 0:01:10]}  Nh7 {[%clk 0:02:09]} 28. Rdc2 {[%clk 0:01:10]}  b5 {[%clk 0:02:00]} 29. c6 {[%clk 0:01:08]}  Nxg5 {[%clk 0:02:00]} 30. Bg2 {[%clk 0:01:08]}  Rc7 {[%clk 0:01:55]} 31. Qxb5 {[%clk 0:00:44]}  Nf3+ {[%clk 0:01:54]} 32. Bxf3 {[%clk 0:00:44]}  exf3 {[%clk 0:01:54]} 33. Rc5 {[%clk 0:00:28]}  h4 {[%clk 0:01:39]} 34. gxh4 {[%clk 0:00:12]}  Qg6 {[%clk 0:01:37]} 35. Kf1 {[%clk 0:00:10]}  Nxe3+ {[%clk 0:01:37]} 36. Ke1 {[%clk 0:00:06]}  Nc4+ {[%clk 0:01:35]} 37. Kd1 {[%clk 0:00:06]}  Qg1+ {[%clk 0:01:15]} 38. Kc2 {[%clk 0:00:05]}  Qxf2+ {[%clk 0:01:16]} 39. Kb3 {[%clk 0:00:04]}  Re3+ {[%clk 0:01:14]} 40. Kb4 {[%clk 0:00:04]}  Qd2+ {[%clk 0:01:13]} 41. Ka4 {[%clk 0:00:04]}  Rxa3# {[%clk 0:01:13]} 0-1


[Site "https://www.chess.com"]

[Event "Titled Tuesday Blitz April 25 Early 2023"]
[White "Dzagnidze, Nana"]
[Black "Quesada Perez, Yuniesky"]
[WhiteFideId "13601903"]
[BlackFideId "3504409"]
[WhiteElo "2406"]
[BlackElo "2585"]
[Result "0-1"]
[Round "02"]
[TimeControl "180+2"]
[Date "2023.04.25"]
[WhiteClock "0:00:03"]
[BlackClock "0:00:32"]

1. c4 {[%clk 0:03:00]}  c6 {[%clk 0:02:59]} 2. Nf3 {[%clk 0:02:58]}  d5 {[%clk 0:02:59]} 3. b3 {[%clk 0:02:58]}  Bf5 {[%clk 0:02:56]} 4. Bb2 {[%clk 0:02:57]}  e6 {[%clk 0:02:56]} 5. g3 {[%clk 0:02:56]}  Nf6 {[%clk 0:02:55]} 6. Bg2 {[%clk 0:02:57]}  h6 {[%clk 0:02:56]} 7. O-O {[%clk 0:02:57]}  Nbd7 {[%clk 0:02:55]} 8. d3 {[%clk 0:02:57]}  Bh7 {[%clk 0:02:53]} 9. Nc3 {[%clk 0:02:54]}  Be7 {[%clk 0:02:51]} 10. e4 {[%clk 0:02:48]}  O-O {[%clk 0:02:41]} 11. e5 {[%clk 0:02:38]}  Ne8 {[%clk 0:02:40]} 12. Qe2 {[%clk 0:02:13]}  a6 {[%clk 0:02:28]} 13. Rac1 {[%clk 0:01:57]}  Qa5 {[%clk 0:02:25]} 14. d4 {[%clk 0:01:51]}  Nc7 {[%clk 0:01:54]} 15. Ne1 {[%clk 0:01:42]}  Rac8 {[%clk 0:01:50]} 16. Nd3 {[%clk 0:01:38]}  Qb6 {[%clk 0:01:45]} 17. Rfd1 {[%clk 0:01:33]}  Qa7 {[%clk 0:01:44]} 18. h4 {[%clk 0:01:26]}  Rfd8 {[%clk 0:01:43]} 19. c5 {[%clk 0:01:21]}  a5 {[%clk 0:01:34]} 20. Na4 {[%clk 0:01:09]}  Na6 {[%clk 0:01:31]} 21. Nf4 {[%clk 0:01:08]}  b6 {[%clk 0:01:30]} 22. cxb6 {[%clk 0:01:06]}  Nxb6 {[%clk 0:01:31]} 23. Bf1 {[%clk 0:01:03]}  Nxa4 {[%clk 0:01:27]} 24. bxa4 {[%clk 0:01:01]}  Nb8 {[%clk 0:01:19]} 25. Qg4 {[%clk 0:00:39]}  Bf5 {[%clk 0:01:18]} 26. Qf3 {[%clk 0:00:39]}  c5 {[%clk 0:01:17]} 27. Bb5 {[%clk 0:00:33]}  Nc6 {[%clk 0:01:08]} 28. Ne2 {[%clk 0:00:21]}  Be4 {[%clk 0:00:55]} 29. Qe3 {[%clk 0:00:19]}  Nb4 {[%clk 0:00:51]} 30. a3 {[%clk 0:00:16]}  Nc2 {[%clk 0:00:51]} 31. Qd2 {[%clk 0:00:17]}  cxd4 {[%clk 0:00:47]} 32. Nxd4 {[%clk 0:00:16]}  Nxd4 {[%clk 0:00:41]} 33. Bxd4 {[%clk 0:00:17]}  Bc5 {[%clk 0:00:41]} 34. Rxc5 {[%clk 0:00:16]}  Rxc5 {[%clk 0:00:42]} 35. Bxc5 {[%clk 0:00:11]}  Qxc5 {[%clk 0:00:41]} 36. Qxa5 {[%clk 0:00:11]}  Rc8 {[%clk 0:00:41]} 37. Qb4 {[%clk 0:00:09]}  Qc2 {[%clk 0:00:40]} 38. Re1 {[%clk 0:00:08]}  Rc3 {[%clk 0:00:38]} 39. a5 {[%clk 0:00:07]}  Rxg3+ {[%clk 0:00:37]} 40. Kf1 {[%clk 0:00:04]}  Bg2+ {[%clk 0:00:32]} 41. Kg1 {[%clk 0:00:03]}  Bh3+ {[%clk 0:00:32]} 0-1


[Site "https://www.chess.com"]